bitfinex/quotes_ETHUSD_20241212
["timestamp","ask_amount","ask_price","bid_price","bid_amount"]
[1733974259416,1.4431,3910.8,3908.5,1.04955824]
[1733974259628,1.4431,3909.8,3907.6,0.12500414]
[1733974259920,1.4431,3909.6,3907.6,0.69961185]
[1733974260084,1.6998197,3909.5,3907.8,0.96396]
[1733974260288,1.46239483,3909.5,3907.7,1.02362]
[1733974260485,1.6805274,3909.4,3907.6,0.69961185]
[1733974260697,1.4431,3909.2,3907.8,1.02358]
[1733974260883,0.01929483,3909.1,3907.6,0.12500414]
[1733974261311,1.4431,3909.2,3908.0,1.02353]
[1733974261523,1.4431,3909.2,3907.6,1.14863414]
[1733974261691,1.4431,3909.2,3908.0,1.02353]
[1733974261894,1.84512748,3909.2,3907.7,1.02362]
[1733974262087,1.4431,3909.2,3907.6,0.12500414]
[1733974262293,1.4431,3909.2,3908.3,1.02345]
[1733974263724,1.4431,3909.2,3908.6,1.02336]
[1733974264023,1.4431,3909.2,3908.8,1.0233]
[1733974265077,1.4431,3909.2,3908.4,1.02343]
[1733974265382,1.4431,3909.2,3908.7,1.02334]
[1733974265607,1.4431,3909.2,3908.5,0.50729882]
[1733974265810,0.01929483,3909.1,3908.1,1.04955824]
[1733974265994,1.4431,3909.2,3907.9,1.57433737]
[1733974265995,1.4431,3909.2,3908.3,1.02345]
[1733974266321,1.4431,3909.2,3908.0,1.02352]
[1733974266492,0.01929483,3909.1,3908.0,1.02352]
[1733974266696,0.01929483,3909.1,3907.7,1.0236]
[1733974266891,0.01929483,3909.1,3907.8,1.02358]
[1733974267227,0.01929483,3909.1,3907.9,0.87867868]
[1733974267415,1.3741,3909.0,3907.8,1.02358]
[1733974267642,0.01929483,3908.9,3907.9,0.51981424]
[1733974267967,1.3741,3909.0,3908.1,3.0]
[1733974268166,1.3741,3909.0,3908.8,1.02332]
[1733974268459,1.3741,3909.0,3908.3,3.0]
[1733974268460,1.3741,3909.0,3908.3,1.04955824]
[1733974268627,1.3741,3909.0,3908.7,1.02335]
[1733974268840,1.3741,3909.0,3908.7,1.425685]
[1733974269046,1.3741,3909.0,3908.3,1.04955824]
[1733974269231,1.3741,3909.0,3908.4,4.04955824]
[1733974269417,1.3741,3909.0,3908.8,1.02332]
[1733974270846,1.3741,3909.0,3908.4,1.04955824]
[1733974271167,1.3741,3909.0,3907.9,0.51981424]
[1733974271168,1.3741,3909.0,3907.9,1.56937248]
[1733974271368,1.3741,3908.8,3907.7,2.07315824]
[1733974271521,1.3741,3908.8,3907.7,1.0236]
[1733974271723,0.01929483,3908.7,3907.7,1.0236]
[1733974272016,0.01929483,3908.7,3907.3,1.57433737]
[1733974272017,1.61279847,3908.6,3907.3,1.0237]
[1733974272237,0.01929483,3908.5,3907.3,1.0237]
[1733974272558,1.39339483,3908.6,3907.4,0.88046159]
[1733974272758,1.3741,3908.6,3908.1,1.02351]
[1733974272913,1.3741,3908.6,3908.1,1.02349]
[1733974273378,1.3741,3908.6,3907.6,4.04955824]
[1733974273560,1.3741,3908.6,3907.4,4.04955824]
[1733974273713,1.3741,3908.6,3907.3,0.20732582]
[1733974273714,1.3741,3908.6,3907.7,1.04955824]
[1733974274083,1.3741,3908.6,3907.7,2.20102785]
[1733974274425,1.3741,3908.6,3907.8,4.02358]
[1733974274615,1.3741,3908.6,3908.0,1.02353]
[1733974274849,1.3741,3908.6,3907.6,3.0]
[1733974274850,1.3741,3908.6,3907.6,4.04955824]
[1733974275046,1.3741,3908.6,3907.8,4.02357]
[1733974275253,1.3741,3908.6,3907.8,1.02357]
[1733974275519,1.3741,3908.6,3907.7,0.57814402]
[1733974275755,1.39339483,3908.6,3907.7,1.93023445]
[1733974275959,1.39339483,3908.6,3907.5,1.04955824]
[1733974275960,1.3741,3908.6,3907.5,1.04955824]
[1733974276144,1.39339483,3908.6,3907.5,4.27496774]
[1733974276345,1.3741,3908.6,3907.6,0.8806998]
[1733974276527,1.3741,3908.6,3907.7,2.39235426]
[1733974276859,1.3741,3908.6,3907.7,0.19043598]
[1733974277028,1.3741,3908.6,3907.8,0.88074183]
[1733974277619,0.01929483,3909.2,3907.4,3.0]
[1733974277620,2.5584,3908.7,3907.4,3.0]
[1733974277837,1.39339483,3908.6,3907.5,0.88083509]
[1733974278023,1.3741,3908.4,3907.2,1.04955824]
[1733974278220,1.3741,3908.0,3906.9,1.04955824]
[1733974278463,1.3741,3908.0,3907.0,2.07335824]
[1733974278768,1.39339483,3908.0,3907.1,2.20213703]
[1733974279069,2.55911,3907.6,3906.3,1.04955824]
[1733974279218,2.55911,3907.6,3905.9,1.04955824]
[1733974279219,1.3741,3907.0,3905.9,1.04955824]
[1733974279417,1.3741,3907.0,3905.8,1.57433737]
[1733974279418,1.3741,3906.8,3906.0,2.20297323]
[1733974279669,1.3741,3906.8,3905.7,1.02413]
[1733974279966,1.3741,3906.8,3905.5,3.45179312]
[1733974280133,1.3741,3906.8,3905.6,2.81034718]
[1733974280320,1.3741,3906.8,3906.4,1.02395]
[1733974280561,1.3741,3906.8,3906.4,1.02394]
[1733974280877,1.3741,3907.8,3906.4,1.04955824]
[1733974281031,1.3741,3907.8,3907.0,1.02379]
[1733974281236,1.3741,3907.8,3907.1,1.02377]
[1733974281435,1.3741,3907.8,3907.6,1.02364]
[1733974282020,1.3741,3907.8,3907.2,1.04955824]
[1733974282252,1.3741,3907.8,3907.2,5.96258803]
[1733974282455,1.3741,3907.8,3907.3,3.22552024]
[1733974282685,1.3741,3907.8,3907.3,1.02372]
[1733974282865,1.3741,3907.8,3907.4,0.88090296]
[1733974283165,1.3741,3907.8,3907.2,3.76102311]
[1733974283166,1.3741,3907.8,3907.2,0.76102311]
[1733974283354,1.3741,3907.8,3907.3,2.20315795]
[1733974283665,1.3741,3907.8,3907.4,2.2031459]
[1733974283964,1.3741,3907.8,3907.3,1.02371]
[1733974284166,1.4265,3908.9,3907.8,1.02358]
[1733974284349,0.01929483,3908.8,3907.9,2.204403]
[1733974284534,1.44579483,3908.9,3907.6,1.04955824]
[1733974284739,1.4265,3908.9,3907.9,1.02355]
[1733974284922,1.4265,3908.9,3908.0,2.20532282]
[1733974285122,1.4265,3908.9,3908.3,1.02345]
[1733974285324,1.4265,3908.9,3908.0,2.00218048]
[1733974285325,1.4265,3908.9,3908.4,2.20523183]
[1733974285667,1.4265,3908.9,3908.5,2.20532857]
[1733974285837,1.4265,3908.9,3908.6,2.20532857]
[1733974286038,1.4265,3908.9,3908.7,2.20526579]
[1733974286269,1.4265,3908.9,3908.6,1.04955824]
[1733974286270,1.4265,3908.9,3908.8,2.20526579]
[1733974286483,1.4265,3908.9,3908.8,1.32312744]
[1733974286691,1.4265,3908.9,3908.6,3.25482403]
[1733974286977,1.4265,3908.9,3908.7,0.88217785]
[1733974287282,2.55776,3909.7,3908.8,0.88217685]
[1733974287283,1.4265,3909.6,3908.8,0.88217685]
[1733974287435,1.4265,3909.6,3909.1,1.02323]
[1733974287635,1.4265,3909.6,3909.2,0.88217685]
[1733974287949,1.4265,3909.6,3909.3,2.20535366]
[1733974288291,1.56915,3909.6,3908.9,1.04955824]
[1733974288482,1.56915,3909.6,3908.7,1.04955824]
[1733974288635,1.58844483,3909.6,3908.8,2.20550257]
[1733974288840,1.56915,3909.6,3908.9,0.8822351]
[1733974289060,1.4265,3909.6,3909.0,3.22879113]
[1733974289262,1.4265,3909.6,3909.1,2.20560817]
[1733974289480,1.4265,3909.6,3909.2,0.8822351]
[1733974289781,1.4265,3909.6,3909.0,1.04955824]
[1733974289936,1.4265,3909.6,3909.1,0.88225082]
[1733974290139,1.4265,3909.6,3909.2,0.88224305]
[1733974290377,1.4265,3909.6,3909.0,1.04955824]
[1733974290679,1.4265,3909.6,3909.1,1.02324]
[1733974290848,1.4265,3909.6,3909.2,2.20557248]
[1733974291049,1.4265,3909.6,3909.0,1.04955824]
[1733974291452,1.4265,3909.6,3909.1,2.20559798]
[1733974291653,1.4265,3909.6,3908.9,1.04955824]
[1733974291852,1.4265,3909.6,3909.1,2.07279824]
[1733974292056,1.4265,3909.6,3909.3,1.02319]
[1733974292257,1.4265,3909.6,3909.4,1.02317]
[1733974292473,1.04955824,3911.8,3909.4,1.02317]
[1733974292474,0.01929483,3910.6,3909.5,3.0]
[1733974292651,1.4148,3910.9,3909.9,1.02303]
[1733974292856,1.4148,3910.9,3910.0,2.20576223]
[1733974293054,1.4148,3910.9,3910.1,0.88230489]
[1733974293267,1.4148,3910.9,3909.9,2.08978851]
[1733974293441,1.4148,3910.9,3910.0,2.20517085]
[1733974293639,1.4148,3910.9,3910.1,0.88206834]
[1733974293838,1.55628,3910.9,3909.9,2.08978851]
[1733974294054,1.55628,3910.9,3910.0,2.20478703]
[1733974294250,1.4148,3910.9,3910.0,2.20478703]
[1733974294494,1.4148,3911.4,3910.3,3.9645633]
[1733974294698,1.4148,3912.4,3911.5,3.0]
[1733974294906,1.4148,3912.4,3912.0,3.9645633]
[1733974295212,1.57433737,3914.4,3912.0,3.9645633]
[1733974295213,1.4148,3914.5,3912.3,0.6111]
[1733974295426,2.55466,3914.4,3912.7,3.9645633]
[1733974295601,1.4148,3914.1,3912.7,3.9645633]
[1733974295750,1.43409483,3914.1,3912.9,1.02225]
[1733974295954,0.14340948,3914.0,3913.0,1.02221]
[1733974296161,1.4148,3914.1,3912.8,3.0]
[1733974296383,1.43409483,3914.9,3913.3,3.9645633]
[1733974296583,1.43409483,3914.9,3913.4,6.26372789]
[1733974296584,1.4148,3914.9,3913.4,6.26372789]
[1733974296787,1.4148,3914.9,3913.4,3.0]
[1733974297504,3.96916,3914.9,3913.4,4.02211]
[1733974297673,0.39884548,3914.8,3913.4,4.44995311]
[1733974297856,0.39884548,3914.8,3913.5,1.02208]
[1733974298055,1.4148,3914.9,3913.6,1.02207]
[1733974298350,1.4148,3914.9,3913.4,3.42784311]
[1733974298592,1.4148,3915.4,3913.4,3.42784311]
[1733974298795,0.01929483,3915.3,3913.4,3.42784311]
[1733974298996,3.98812483,3915.4,3913.9,1.02198]
[1733974299197,3.98812483,3915.4,3913.4,3.45339224]
[1733974299198,0.39881248,3915.3,3913.4,3.42784311]
[1733974299353,2.55421,3915.1,3913.3,3.9645633]
[1733974299554,2.55451,3914.7,3913.3,3.9645633]
[1733974299910,1.43409483,3914.6,3912.7,4.5756633]
[1733974300091,2.5549,3914.1,3912.7,3.9645633]
[1733974300260,0.27478483,3914.0,3912.7,3.9645633]
[1733974300454,2.55476,3914.3,3912.7,3.9645633]
[1733974300771,1.4148,3914.6,3913.2,1.02216]
[1733974300973,1.4148,3914.6,3912.7,3.99011566]
[1733974301203,1.4148,3914.6,3913.7,1.02204]
[1733974301542,1.4148,3914.6,3913.4,3.0]
[1733974301674,1.4148,3914.6,3913.4,3.39645633]
[1733974301874,1.4148,3914.6,3913.7,1.02203]
[1733974302307,0.01929483,3914.5,3913.3,3.9645633]
[1733974302877,0.01929483,3914.5,3913.3,4.9867033]
[1733974303072,1.43409483,3914.6,3913.3,5.78537363]
[1733974303379,3.98864483,3914.6,3913.3,5.78526063]
[1733974303606,1.43409483,3914.6,3913.3,5.78526063]
[1733974303780,1.4148,3914.6,3913.6,1.02206]
[1733974304303,1.4148,3914.6,3913.4,3.0]
[1733974304507,1.4148,3914.6,3913.9,1.02199]
[1733974305291,0.01929483,3915.3,3913.9,1.02199]
[1733974305292,1.4148,3915.2,3913.9,3.9645633]
[1733974305498,1.4148,3915.2,3914.1,1.02193]
[1733974305916,1.41172001,3915.2,3914.1,1.02193]
[1733974306102,1.41172001,3915.2,3913.9,3.9645633]
[1733974306320,1.41172001,3915.2,3914.2,1.02191]
[1733974306737,1.41172001,3915.2,3914.0,3.45756633]
[1733974306907,1.41172001,3915.2,3913.6,3.0]
[1733974307106,2.5543,3915.0,3913.5,1.59201165]
[1733974307431,2.57364483,3914.9,3913.5,1.59201165]
[1733974307637,3.98518484,3915.2,3913.7,1.02204]
[1733974307804,3.98518484,3915.2,3913.5,0.56992165]
[1733974307805,1.41172001,3915.2,3913.8,1.02201]
[1733974308544,1.41172001,3915.2,3914.0,1.02196]
[1733974308746,1.41172001,3915.2,3914.0,3.0]
[1733974308956,1.41172001,3915.2,3914.1,0.69645633]
[1733974309716,1.41172001,3915.2,3914.2,1.02191]
[1733974309936,0.01929483,3915.1,3913.6,3.0]
[1733974310137,2.55436,3914.9,3913.4,1.02211]
[1733974310338,1.4148,3914.7,3913.5,0.66229003]
[1733974310854,2.5546,3914.6,3913.5,0.66229003]
[1733974311210,1.4148,3914.7,3913.6,3.60498047]
[1733974311510,1.4148,3914.7,3913.6,4.62703047]
[1733974311869,1.4148,3914.7,3914.0,1.02195]
[1733974312148,1.4148,3914.7,3913.7,3.0]
[1733974312149,1.4107,3915.3,3914.1,4.62692047]
[1733974312351,1.4107,3915.3,3914.2,0.46269205]
[1733974312648,3.96483,3915.3,3914.2,0.46269205]
[1733974313213,2.55429,3915.0,3913.7,3.0]
[1733974313559,3.96515,3914.8,3913.7,3.0]
[1733974314054,1.4107,3914.8,3913.7,3.0]
[1733974315048,3.96513,3914.8,3913.7,3.0]
[1733974315455,1.4107,3914.8,3913.7,3.0]
[1733974315659,1.4107,3914.8,3913.8,0.66049805]
[1733974316023,1.4107,3914.8,3914.1,3.60498047]
[1733974316719,1.4107,3914.8,3914.1,4.62692047]
[1733974316924,1.4107,3914.8,3914.1,3.60498047]
[1733974317128,1.4107,3914.8,3914.4,1.02186]
[1733974317325,1.4107,3914.8,3914.4,0.70809393]
[1733974317941,1.4107,3915.3,3914.4,0.70809393]
[1733974318133,1.4107,3915.3,3914.4,1.72995393]
[1733974319380,1.4107,3915.3,3914.4,0.70809393]
[1733974319738,1.4107,3915.3,3914.2,3.72999393]
[1733974320131,1.4107,3915.3,3914.3,1.02188]
[1733974320343,1.4107,3915.3,3914.1,3.60498047]
[1733974320544,0.63064458,3916.8,3913.0,0.1251372]
[1733974320545,1.4107,3915.1,3913.0,0.1251372]
[1733974320733,0.01929483,3915.0,3913.5,3.60498047]
[1733974321075,1.4107,3915.1,3914.3,1.02187]
[1733974321443,0.01929483,3915.0,3914.0,3.60498047]
[1733974321644,1.4107,3915.1,3914.0,3.60498047]
[1733974321985,1.4107,3915.1,3914.1,4.02193]
[1733974322472,1.4107,3915.1,3914.0,3.60498047]
[1733974322690,1.4107,3915.1,3914.2,0.6129]
[1733974322977,1.4107,3915.1,3914.5,1.02182]
[1733974323177,0.01929483,3915.0,3914.1,0.36049805]
[1733974323353,0.01929483,3915.0,3914.0,3.60498047]
[1733974323752,0.01929483,3915.0,3914.0,4.62694047]
[1733974323965,0.01929483,3915.0,3914.1,1.02194]
[1733974324166,1.4107,3915.1,3914.1,1.02194]
[1733974324367,0.23839529,3915.0,3914.2,1.0219]
[1733974324553,0.23839529,3914.9,3914.3,1.02187]
[1733974324884,1.4107,3915.1,3914.5,1.02182]
[1733974325094,0.23836947,3915.0,3914.5,3.60498047]
[1733974325389,3.96414,3916.3,3914.8,1.02174]
[1733974325599,2.55364,3916.0,3914.6,3.0]
[1733974325776,0.25774465,3915.9,3914.6,4.02179]
[1733974326095,0.23844982,3915.8,3914.8,1.02176]
[1733974326291,0.23844982,3915.7,3914.8,1.02176]
[1733974326449,0.01929483,3915.9,3914.6,3.0]
[1733974326450,0.23844982,3915.6,3914.6,3.0]
[1733974326651,0.01929483,3915.9,3914.6,3.0]
[1733974326963,0.01929483,3915.9,3914.7,1.02177]
[1733974327139,0.23843057,3915.8,3914.7,1.02177]
[1733974327343,1.3473,3915.6,3914.5,3.60498047]
[1733974327601,2.5533,3916.5,3914.1,3.0]
[1733974327602,1.3473,3915.4,3914.1,3.0]
[1733974327925,0.41822794,3915.3,3914.1,3.0]
[1733974328099,0.41822794,3915.3,3913.5,4.62707047]
[1733974328100,0.23843057,3915.2,3913.5,4.62707047]
[1733974328398,2.55441,3914.8,3913.6,0.77]
[1733974328602,2.55441,3914.8,3913.5,3.60498047]
[1733974328603,1.3473,3914.6,3913.5,3.60498047]
[1733974328740,0.23843057,3914.5,3913.5,3.60498047]
[1733974329106,0.23843057,3914.4,3914.0,3.60498047]
[1733974329249,1.3473,3915.1,3914.3,1.02188]
[1733974329451,0.23844819,3915.0,3914.0,3.60498047]
[1733974329795,0.23844819,3914.9,3914.4,1.02186]
[1733974329948,1.3473,3915.1,3914.4,1.02186]
[1733974330148,0.23843401,3915.0,3914.5,1.02183]
[1733974330410,1.3473,3915.1,3914.7,1.02178]
[1733974330543,0.23854553,3915.0,3914.7,1.02178]
[1733974330745,1.3473,3915.9,3914.6,3.0]
[1733974330944,0.25782264,3915.8,3914.6,3.0]
[1733974331152,0.25782264,3915.8,3913.9,1.63488]
[1733974331153,2.55404,3915.4,3914.1,1.02193]
[1733974331343,0.25782264,3915.3,3914.2,1.02191]
[1733974331545,0.23852781,3915.2,3914.1,3.0]
[1733974331757,0.25782264,3915.1,3914.1,3.0]
[1733974332109,1.58582781,3915.0,3913.6,4.02205]
[1733974332272,0.25782264,3914.9,3913.7,1.02204]
[1733974332604,1.3473,3915.0,3913.6,3.0]
[1733974332605,0.01929483,3914.8,3913.6,3.0]
[1733974332817,0.23860425,3914.7,3913.6,3.0]
[1733974333013,0.23860425,3914.6,3913.9,1.02199]
[1733974333305,0.23860425,3914.5,3913.5,3.60498047]
[1733974333454,0.23860425,3914.4,3913.5,4.62707047]
[1733974333661,0.23860425,3914.3,3913.5,4.62707047]
[1733974333901,0.23860425,3914.2,3913.6,1.02206]
[1733974334112,0.23860425,3914.1,3913.9,1.02199]
[1733974334431,1.3473,3915.0,3913.6,1.02206]
[1733974334432,3.90158,3915.0,3913.6,1.02206]
[1733974334556,0.23867963,3914.9,3913.6,4.02206]
[1733974334753,0.23867963,3914.8,3913.6,3.0]
[1733974335002,0.23867963,3914.7,3913.9,1.02198]
[1733974335306,0.23867963,3914.6,3913.9,1.02198]
[1733974335502,0.23867963,3914.5,3913.6,3.0]
[1733974335720,1.3473,3915.0,3913.6,3.0]
[1733974335721,0.23867313,3914.4,3913.6,3.0]
[1733974335872,0.23867313,3914.3,3913.8,1.02201]
[1733974336069,1.3473,3915.0,3913.8,1.02201]
[1733974336276,0.62881911,3914.9,3913.8,1.02201]
[1733974336521,1.3473,3915.0,3914.0,1.02196]
[1733974336522,0.23867011,3914.8,3914.0,1.02196]
[1733974336686,0.23867011,3914.7,3914.0,1.02196]
[1733974336889,1.3473,3915.0,3913.7,1.02202]
[1733974336890,0.23867011,3914.6,3913.7,1.02202]
[1733974337124,0.23867011,3914.5,3913.7,1.02202]
[1733974337320,1.3473,3915.0,3913.6,3.0]
[1733974337321,0.23867011,3914.4,3913.6,3.0]
[1733974337489,0.23867011,3914.3,3913.7,2.1963479]
[1733974337694,1.3473,3914.1,3913.5,3.60498047]
[1733974337908,1.3473,3914.1,3913.6,0.8785497]
[1733974338076,1.3473,3914.1,3913.3,2.08758687]
[1733974338282,0.6288853,3914.0,3913.3,1.022027]
[1733974338479,0.2386783,3913.9,3913.3,1.022027]
[1733974338678,0.2386783,3913.8,3913.3,2.08758687]
[1733974338882,1.3473,3914.1,3913.3,2.08758687]
[1733974338883,1.3473,3914.1,3913.5,4.62708047]
[1733974339086,0.23863905,3914.0,3913.6,2.19986143]
[1733974339337,1.3473,3914.1,3913.5,3.60498047]
[1733974339540,0.25789478,3914.0,3913.6,2.2037389]
[1733974339704,4.14089995,3913.9,3913.1,1.06555987]
[1733974339903,0.23859995,3913.8,3913.1,2.20400685]
[1733974340105,0.23859995,3913.7,3913.2,2.20400685]
[1733974340451,2.55434,3915.0,3913.1,1.022201]
[1733974340452,2.55532,3913.4,3913.3,0.88331854]
[1733974340593,1.3473,3913.3,3912.8,1.06555987]
[1733974340796,2.55496,3914.0,3912.6,1.06555987]
[1733974340797,2.55571,3912.8,3912.6,1.06555987]
[1733974341027,0.23859995,3912.7,3912.6,3.2740956]
[1733974341190,1.3473,3912.9,3912.5,4.62733047]
[1733974341399,1.3933,3914.1,3912.5,4.62733047]
[1733974341632,1.3933,3913.7,3912.5,3.60498047]
[1733974341796,1.3731,3913.4,3912.5,3.60498047]
[1733974341997,0.23830507,3913.3,3913.0,1.06861646]
[1733974342235,0.23830507,3913.3,3912.6,4.78806965]
[1733974342236,0.23831331,3913.2,3912.7,1.06861646]
[1733974342543,3.92843,3913.4,3912.8,1.32489656]
[1733974342733,0.23817753,3913.3,3912.9,2.20816093]
[1733974343077,4.321273,3913.4,3913.0,0.88326437]
[1733974343208,0.23817746,3913.3,3912.7,1.06861646]
[1733974343543,0.23817746,3913.3,3912.5,5.20790517]
[1733974343544,1.3731,3913.4,3913.2,1.06861646]
[1733974343725,1.3731,3913.4,3913.3,1.32414681]
[1733974343936,1.3731,3913.4,3913.3,2.20691135]
[1733974344252,1.3731,3913.4,3913.3,1.32414681]
[1733974344414,1.3731,3913.4,3913.3,0.88276454]
[1733974344604,1.3731,3913.4,3912.5,6.27652076]
[1733974344605,1.765937,3913.4,3913.0,1.06861646]
[1733974344799,1.765937,3913.4,3913.1,3.27495957]
[1733974344800,1.3731,3913.4,3913.1,3.27495957]
[1733974345037,1.3731,3913.4,3913.2,3.27495957]
[1733974345238,1.3731,3914.6,3913.3,2.20634311]
[1733974345577,2.57390483,3914.5,3913.5,1.06710227]
[1733974345736,2.57390483,3914.5,3913.6,1.32380587]
[1733974345903,0.39470048,3914.4,3913.7,2.20634311]
[1733974346100,0.39470048,3914.4,3913.8,0.88253724]
[1733974346309,0.39470048,3914.4,3913.5,1.06710227]
[1733974346310,0.39470048,3914.4,3913.6,1.06710227]
[1733974346524,0.39470048,3914.4,3913.7,1.32352907]
[1733974346855,0.39470048,3914.4,3913.9,1.06710227]
[1733974347001,1.3731,3914.6,3913.9,2.39063134]
[1733974347196,1.3731,3914.6,3914.0,2.20588178]
[1733974347443,1.3731,3914.6,3914.1,0.88235271]
[1733974347643,1.3731,3914.6,3913.9,1.06710227]
[1733974347801,1.3731,3914.6,3914.0,1.32339385]
[1733974348004,1.3731,3914.6,3914.1,2.20565642]
[1733974348330,1.3731,3914.6,3914.2,2.20562838]
[1733974348541,1.3731,3914.6,3914.3,3.27273065]
[1733974348700,1.3731,3914.6,3914.4,2.20562838]
[1733974348900,1.3731,3914.6,3914.5,0.88218668]
[1733974349104,1.3731,3914.6,3914.1,1.06710227]
[1733974349300,1.3731,3914.6,3913.8,1.06710227]
[1733974349301,1.3731,3914.1,3913.8,1.06710227]
[1733974349542,1.3731,3914.1,3913.6,1.6029247]
[1733974349543,1.3731,3914.1,3913.9,0.88234473]
[1733974349698,1.3731,3914.1,3913.6,1.06710227]
[1733974350233,1.3731,3914.1,3913.5,3.27300195]
[1733974350557,1.3731,3914.1,3913.6,3.27300195]
[1733974350820,2.55503,3913.9,3913.4,1.06710227]
[1733974351031,0.01929483,3913.8,3913.5,2.20596808]
[1733974351172,0.01929483,3913.8,3913.1,1.06710227]
[1733974351173,2.55509,3913.8,3913.1,1.06710227]
[1733974351370,0.15853431,3914.0,3913.2,1.32353104]
[1733974351573,0.13923948,3914.0,3913.3,3.27298733]
[1733974351820,0.13923948,3914.0,3913.4,3.27298733]
[1733974352024,0.13923948,3914.0,3913.5,2.20588506]
[1733974352178,2.55513,3913.7,3913.3,1.06710227]
[1733974352378,2.55513,3913.7,3913.0,1.06710227]
[1733974352624,0.13923948,3914.0,3913.1,1.32337978]
[1733974352625,2.69419948,3914.0,3913.1,1.32337978]
[1733974352820,2.69419948,3914.0,3913.2,2.20569245]
[1733974353029,2.69419948,3914.0,3913.4,1.06710227]
[1733974353030,0.13923948,3914.0,3913.4,1.06710227]
[1733974353181,1.3731,3914.1,3913.7,1.06710227]
[1733974353381,1.3731,3914.1,3913.8,1.32322973]
[1733974353618,1.3731,3914.1,3913.7,1.06710227]
[1733974353916,1.3731,3914.1,3913.8,2.20535975]
[1733974354101,1.3731,3914.1,3913.9,0.88231267]
[1733974354306,1.3731,3914.1,3913.6,1.06710227]
[1733974354628,1.3731,3915.4,3913.9,1.06710227]
[1733974354789,0.01929483,3915.3,3914.3,1.06655967]
[1733974354976,2.55415,3915.2,3914.4,2.20499345]
[1733974355176,2.55415,3915.2,3914.5,2.20499345]
[1733974355410,2.55415,3915.2,3914.6,0.88194345]
[1733974355631,2.55415,3915.2,3914.4,1.06658287]
[1733974355632,0.39465448,3915.1,3914.4,1.06658287]
[1733974355797,0.39465448,3915.1,3914.5,1.3228729]
[1733974355998,0.01929483,3915.0,3913.7,5.66776493]
[1733974356203,1.3731,3914.9,3913.8,3.89691936]
[1733974356386,1.3731,3914.7,3913.9,2.1649552]
[1733974356586,2.55468,3914.4,3913.1,4.0222]
[1733974356788,3.92761,3914.7,3913.3,3.0]
[1733974357008,1.3731,3914.7,3913.4,3.89742867]
[1733974357322,3.92759,3914.7,3913.4,3.89742867]
[1733974357624,0.01929483,3914.6,3913.4,3.89742867]
[1733974357807,0.01929483,3914.6,3913.5,2.16523815]
[1733974358009,1.3731,3914.2,3913.6,2.16523815]
[1733974358210,3.9279,3914.2,3913.1,3.0]
[1733974358425,3.9279,3914.2,3913.2,2.1654789]
[1733974358630,2.55488,3914.1,3913.3,2.1654789]
[1733974358804,2.55488,3914.1,3913.4,2.1654789]
[1733974358989,2.55488,3914.1,3913.5,0.86619156]
[1733974359187,2.55488,3914.1,3913.1,3.0]
[1733974359392,2.55488,3914.1,3913.2,2.16536772]
[1733974359731,0.01929483,3914.0,3913.2,2.16536772]
[1733974359936,0.392798,3914.1,3913.3,2.16529988]
[1733974360117,2.55494,3914.0,3913.4,0.86614709]
[1733974360434,1.3731,3914.2,3913.5,2.16520885]
[1733974360731,1.3731,3914.2,3913.1,1.0222]
[1733974361033,1.3731,3914.2,3913.2,2.16501652]
[1733974361207,1.3731,3914.2,3913.3,2.16501652]
[1733974361539,1.3731,3914.2,3913.4,2.16501652]
[1733974361694,1.3731,3914.2,3913.5,0.86600661]
[1733974361894,1.3731,3914.2,3913.1,1.0222]
[1733974362114,1.3731,3914.2,3913.2,2.16487947]
[1733974362317,1.3731,3914.2,3913.2,3.18704947]
[1733974362632,1.3731,3914.2,3913.3,2.16487947]
[1733974362843,1.3731,3914.2,3913.4,2.16487947]
[1733974363022,1.3731,3914.2,3913.5,2.16478934]
[1733974363364,1.3731,3914.2,3913.0,3.60498047]
[1733974363365,1.3731,3914.2,3913.6,2.16476336]
[1733974363493,1.3731,3914.2,3913.4,1.02211]
[1733974363494,1.3731,3914.2,3913.7,2.16478292]
[1733974363690,1.3731,3914.2,3913.8,0.86588227]
[1733974364005,1.0182,3914.9,3913.9,2.16464343]
[1733974364187,2.55391,3915.6,3913.3,5.66622485]
[1733974364188,2.81207998,3914.8,3913.3,2.13299232]
[1733974364390,1.0182,3913.5,3913.4,2.16485653]
[1733974364594,1.0182,3913.5,3912.9,1.60010141]
[1733974364803,1.0182,3913.5,3913.0,2.1652266]
[1733974364992,0.01929483,3913.4,3912.5,1.60010141]
[1733974365221,0.01929483,3913.4,3912.6,2.16548777]
[1733974365222,1.0182,3913.3,3912.6,2.16548777]
[1733974365495,1.0182,3912.1,3911.5,5.20508188]
[1733974365721,1.375631,3912.1,3911.6,2.16590468]
[1733974366049,1.0182,3912.1,3911.7,2.16585981]
[1733974366249,1.0182,3912.1,3911.5,3.60498047]
[1733974367316,1.0182,3912.6,3911.8,1.02254]
[1733974367514,1.0182,3912.6,3911.9,1.22008603]
[1733974367722,1.0182,3912.6,3912.1,1.02245]
[1733974367932,3.62323646,3914.5,3912.0,3.60498047]
[1733974367933,1.0182,3913.7,3912.3,1.0224]
[1733974368278,3.81156718,3913.7,3912.3,1.0224]
[1733974368567,1.0182,3913.7,3912.5,3.60498047]
[1733974368787,1.0182,3913.7,3912.7,1.02231]
[1733974368921,1.0182,3913.7,3912.6,1.2197298]
[1733974368922,1.0182,3913.7,3912.6,1.06706698]
[1733974369231,1.0182,3913.7,3912.5,3.60498047]
[1733974369232,1.0182,3913.7,3912.5,5.69438745]
[1733974369454,2.57452483,3913.6,3912.6,1.21979866]
[1733974369656,2.55526,3913.5,3912.5,3.60498047]
[1733974370184,1.0182,3913.7,3912.6,1.02232]
[1733974371780,1.0182,3913.7,3912.7,1.21984691]
[1733974371986,1.0182,3913.7,3912.8,1.21984691]
[1733974372152,1.0182,3913.7,3913.1,1.0222]
[1733974372362,1.0182,3913.7,3912.6,4.60010141]
[1733974372363,1.0182,3913.7,3912.7,1.06706698]
[1733974372557,1.0182,3913.7,3912.8,1.22016645]
[1733974372877,1.0182,3913.7,3912.6,4.06706698]
[1733974373080,1.0182,3913.7,3912.7,2.28721371]
[1733974373379,1.0182,3913.7,3913.0,2.08928698]
[1733974373565,1.0182,3913.7,3913.2,1.02217]